[Event "EYCC O18-ch 2024"]
[Site "Prague"]
[Date "2024.08.24"]
[Round "3.8"]
[White "Pidluznij, Gleb"]
[Black "Soderstrom, Adrian"]
[Result "1/2-1/2"]
[ECO "A49"]
[WhiteElo "2414"]
[BlackElo "2318"]
[Annotator "RC"]
[PlyCount "192"]
[EventDate "2024.08.19"]
[EventType "swiss"]
[EventCountry "CZE"]
[SourceTitle "playchess.com"]
[Source "ChessBase"]
[SourceQuality "1"]
[TimeControl "5400+30"]

1. d4 {[%emt 0:00:04]} Nf6 {[%emt 0:00:12]} 2. Nf3 {[%emt 0:00:57]} g6 {[%emt 0:00:24]} 3. g3 {[%emt 0:00:08]} d5 {[%emt 0:00:14]} 4. Bg2 {[%emt 0:00:10]} Bg7 {[%emt 0:00:03]} 5. O-O {[%emt 0:00:18]} O-O {[%emt 0:00:06]} 6. Bf4 {[%emt 0:00:11]} c5 {[%emt 0:06:47]} 7. dxc5 {[%emt 0:00:09]} Na6 {[%emt 0:05:48]} 8. c4 {[%emt 0:00:09]} dxc4 {[%emt 0:02:18]} 9. Qxd8 {[%emt 0:00:25]} Rxd8 {[%emt 0:00:02]} 10. c6 {[%emt 0:00:15]} Nd5 {[%emt 0:09:20]} 11. cxb7 {[%emt 0:05:27]} Bxb7 {[%emt 0:00:08]} 12. Be5 {[%emt 0:00:08]} f6 {[%emt 0:09:25]} 13. Bc3 {[%emt 0:00:53]} Nc5 {[%emt 0:05:58]} 14. Rc1 {[%emt 0:09:32]} Nxc3 {[%emt 0:07:31]} 15. Nxc3 {[%emt 0:00:28]} Rab8 {[%emt 0:01:41]} 16. Rc2 {[%emt 0:01:21]} f5 {[%emt 0:03:38]} 17. Rac1 {[%emt 0:15:19]} e5 {[%emt 0:13:15]} 18. Nd1 {[%emt 0:10:17]} Ne6 {[%emt 0:04:29]} 19. e3 {[%emt 0:02:06]} Nc5 {[%emt 0:04:15]} 20. Rxc4 {[%emt 0:04:49]} Nd3 {[%emt 0:00:10]} 21. Rb1 {[%emt 0:02:16]} Be4 {[%emt 0:07:58]} 22. Rxe4 {[%emt 0:00:54]} fxe4 {[%emt 0:00:10]} 23. Ng5 {[%emt 0:00:06]} Nxb2 {[%emt 0:03:29]} 24. Nxb2 {[%emt 0:00:33]} Rd2 {[%emt 0:00:15]} 25. Bxe4 {[%emt 0:00:09]} Rdxb2 {[%emt 0:02:45]} 26. Bd5+ {[%emt 0:00:29]} Kf8 {[%emt 0:00:42]} 27. Rxb2 {[%emt 0:00:42]} Rxb2 {[%emt 0:00:03]} 28. Nxh7+ {[%emt 0:00:12]} Ke7 {[%emt 0:00:07]} 29. Ng5 {[%emt 0:00:29]} a5 {[%emt 0:02:06]} 30. Bb3 {[%emt 0:02:04]} a4 {[%emt 0:00:48]} 31. Bxa4 {[%emt 0:00:08]} Rxa2 {[%emt 0:00:04]} 32. Bc6 {[%emt 0:01:25]} Ra6 {[%emt 0:02:59]} 33. Be4 {[%emt 0:01:05]} Bh6 {[%emt 0:01:19]} 34. Nf3 {[%emt 0:00:15]} Kf6 {[%emt 0:01:25]} 35. h3 {[%emt 0:00:12]} Ra4 {[%emt 0:00:18]} 36. Bc6 {[%emt 0:01:11]} Ra6 {[%emt 0:00:08]} 37. Bd5 {[%emt 0:02:17]} Ra5 {[%emt 0:00:06]} 38. e4 {[%emt 0:00:26]} Rb5 {[%emt 0:00:57]} 39. Nh2 {[%emt 0:00:56]} Bg7 {[%emt 0:01:04]} 40. Ng4+ {[%emt 0:00:34]} Ke7 {[%emt 0:00:01]} 41. h4 {[%emt 0:01:03]} Rb2 {[%emt 0:00:58]} 42. Kg2 {[%emt 0:00:56]} Bh8 {[%emt 0:00:55]} 43. Nh2 {[%emt 0:05:02]} Bg7 {[%emt 0:00:14]} 44. Nf3 {[%emt 0:02:23]} Kf6 {[%emt 0:00:30]} 45. g4 {[%emt 0:00:15]} Rb8 {[%emt 0:00:38]} 46. g5+ {[%emt 0:00:39]} Ke7 {[%emt 0:00:01]} 47. Kg3 {[%emt 0:00:48]} Rb1 {[%emt 0:01:26]} 48. Kg2 {[%emt 0:01:05]} Rb8 {[%emt 0:00:18]} 49. Nd2 {[%emt 0:00:33]} Rb2 {[%emt 0:01:00]} 50. Nf1 {[%emt 0:00:44]} Rb8 {[%emt 0:02:12]} 51. Ne3 {[%emt 0:07:43]} Bh8 {[%emt 0:00:30]} 52. Kg3 {[%emt 0:02:58]} Rb1 {[%emt 0:00:31]} 53. Kg2 {[%emt 0:04:29]} Rb8 {[%emt 0:00:02]} 54. Nf1 {[%emt 0:01:07]} Rb2 {[%emt 0:00:48]} 55. Ng3 {[%emt 0:00:15]} Rb6 {[%emt 0:00:38]} 56. Kf3 {[%emt 0:01:57]} Rb1 {[%emt 0:00:30]} 57. h5 {[%emt 0:01:32]} gxh5 {[%emt 0:00:08]} 58. Nxh5 {[%emt 0:00:04]} Kf8 {[%emt 0:01:31]} 59. Kg4 {[%emt 0:07:17]} Rf1 {[%emt 0:00:27]} 60. f3 {[%emt 0:00:11]} Rg1+ {[%emt 0:00:44]} 61. Kf5 {[%emt 0:01:33]} Rf1 {[%emt 0:00:14]} 62. Kg4 {[%emt 0:03:11]} Rg1+ {[%emt 0:00:02]} 63. Ng3 {[%emt 0:00:06]} Rg2 {[%emt 0:01:17]} 64. Be6 {[%emt 0:00:32]} Ke7 {[%emt 0:01:03]} 65. Bc4 {[%emt 0:00:06]} Rc2 {[%emt 0:00:36]} 66. Bb3 {[%emt 0:00:55]} Rb2 {[%emt 0:00:08]} 67. Bc4 {[%emt 0:00:51]} Rc2 {[%emt 0:00:02]} 68. Be2 {[%emt 0:00:06]} Rb2 {[%emt 0:01:57]} 69. Kh5 Rb6 {[%emt 0:00:34]} 70. Bc4 {[%emt 0:02:08]} Kf8 {[%emt 0:00:01]} 71. Kg4 {[%emt 0:00:38]} Ke7 {[%emt 0:00:15]} 72. Kf5 {[%emt 0:00:25]} Rc6 {[%emt 0:00:21]} 73. Bf1 {[%emt 0:01:56]} Rc3 {[%emt 0:00:20]} 74. Kg4 {[%emt 0:00:25]} Rc1 {[%emt 0:00:33]} 75. Kf5 {[%emt 0:00:33]} Rc3 {[%emt 0:00:09]} 76. Bg2 {[%emt 0:00:57]} Rc2 {[%emt 0:00:07]} 77. Bh3 {[%emt 0:00:17]} Rc3 {[%emt 0:00:13]} 78. Bg4 {[%emt 0:00:09]} Rc6 {[%emt 0:00:20]} 79. Nh5 {[%emt 0:01:05]} Kf7 {[%emt 0:00:22]} 80. Ng3 {[%emt 0:01:31]} Ra6 {[%emt 0:00:10]} 81. Nf1 {[%emt 0:00:26]} Ra3 {[%emt 0:00:41]} 82. Bh5+ {[%emt 0:00:16]} Kf8 {[%emt 0:00:38]} 83. Kg6 {[%emt 0:01:59]} Kg8 {[%emt 0:00:19]} 84. Nh2 {[%emt 0:00:40]} Ra6+ {[%emt 0:00:22]} 85. Kf5 {[%emt 0:00:03]} Ra3 {[%emt 0:00:59]} 86. Bg4 {[%emt 0:00:08]} Ra1 {[%emt 0:00:42]} 87. f4 {[%emt 0:01:40]} exf4 {[%emt 0:00:20]} 88. e5 {[%emt 0:00:45]} Kf7 {[%emt 0:01:18]} 89. Kxf4 {[%emt 0:00:31]} Ra4+ {[%emt 0:01:50]} 90. Kf5 {[%emt 0:00:05]} Bxe5 {[%emt 0:00:50]} 91. Kxe5 {[%emt 0:00:37]} Kg6 {[%emt 0:00:21]} 92. Bd7 {[%emt 0:00:19]} Ra5+ {[%emt 0:00:30]} 93. Kf4 {[%emt 0:00:07]} Rxg5 {[%emt 0:00:16]} 94. Be8+ {[%emt 0:00:06]} Kf6 {[%emt 0:00:21]} 95. Ng4+ {[%emt 0:00:06]} Rxg4+ {[%emt 0:00:06]} 96. Kxg4 {[%emt 0:00:05]} Ke5 1/2-1/2

[Event "EYCC O18-ch 2024"]
[Site "Prague"]
[Date "2024.08.24"]
[Round "3.8"]
[White "Ozen, Metehan"]
[Black "Dehtiarov, Roman"]
[Result "0-1"]
[ECO "B67"]
[WhiteElo "2142"]
[BlackElo "2308"]
[Annotator "RC"]
[PlyCount "68"]
[EventDate "2024.08.19"]
[EventType "swiss"]
[EventCountry "CZE"]
[SourceTitle "playchess.com"]
[Source "ChessBase"]
[SourceQuality "1"]
[TimeControl "5400+30"]

1. e4 {[%emt 0:00:03]} c5 {[%emt 0:00:08]} 2. Nf3 {[%emt 0:00:06]} d6 {[%emt 0:00:12]} 3. d4 {[%emt 0:00:06]} cxd4 {[%emt 0:00:11]} 4. Nxd4 {[%emt 0:00:10]} Nf6 {[%emt 0:00:10]} 5. Nc3 {[%emt 0:00:05]} Nc6 {[%emt 0:00:12]} 6. Bg5 {[%emt 0:00:29]} e6 {[%emt 0:00:12]} 7. Qd2 {[%emt 0:00:06]} a6 {[%emt 0:00:12]} 8. O-O-O {[%emt 0:00:13]} Bd7 {[%emt 0:00:10]} 9. Kb1 {[%emt 0:04:09]} b5 {[%emt 0:01:47]} 10. Nxc6 {[%emt 0:00:49]} Bxc6 {[%emt 0:00:10]} 11. f3 {[%emt 0:00:09]} Rc8 {[%emt 0:01:47]} 12. h4 {[%emt 0:03:39]} Be7 {[%emt 0:00:40]} 13. Ne2 {[%emt 0:01:53]} Bb7 {[%emt 0:00:36]} 14. Nd4 {[%emt 0:02:06]} h6 {[%emt 0:00:23]} 15. Be3 {[%emt 0:01:05]} Nd7 {[%emt 0:00:15]} 16. Qf2 {[%emt 0:03:48]} d5 {[%emt 0:03:25]} 17. exd5 {[%emt 0:05:06]} Bxd5 {[%emt 0:01:05]} 18. Nf5 {[%emt 0:02:00]} O-O {[%emt 0:17:04]} 19. Qg3 {[%emt 0:04:47]} Bxa2+ {[%emt 0:11:44]} 20. Kxa2 {[%emt 0:00:11]} exf5 {[%emt 0:00:02]} 21. Bxh6 {[%emt 0:02:57]} Bf6 {[%emt 0:00:36]} 22. Kb1 {[%emt 0:03:52]} Bxb2 {[%emt 0:12:22]} 23. Kxb2 {[%emt 0:04:36]} Qf6+ {[%emt 0:00:12]} 24. Kb1 {[%emt 0:00:18]} Qxh6 {[%emt 0:00:11]} 25. Rxd7 {[%emt 0:06:44]} Rxc2 {[%emt 0:00:16]} 26. Bd3 {[%emt 0:02:14]} Rc3 {[%emt 0:03:51]} 27. Qe1 {[%emt 0:12:55]} Qc6 {[%emt 0:05:44]} 28. Qd2 {[%emt 0:04:06]} b4 {[%emt 0:02:03]} 29. Bxf5 {[%emt 0:01:42]} Rb3+ {[%emt 0:00:33]} 30. Ka1 {[%emt 0:00:01]} Qa4+ {[%emt 0:00:11]} 31. Qa2 {[%emt 0:00:06]} Ra3 {[%emt 0:00:01]} 32. Rd2 {[%emt 0:00:17]} b3 {[%emt 0:00:52]} 33. Qxa3 {[%emt 0:00:05]} Qxa3+ {[%emt 0:00:02]} 34. Kb1 {[%emt 0:00:06]} Qa5 {[%emt 0:00:02]} 0-1

[Event "EYCC O18-ch 2024"]
[Site "Prague"]
[Date "2024.08.24"]
[Round "3.9"]
[White "Kuti, Oliver"]
[Black "Zlatkov, Anton"]
[Result "0-1"]
[ECO "B30"]
[WhiteElo "2114"]
[BlackElo "2297"]
[Annotator "RC"]
[PlyCount "94"]
[EventDate "2024.08.19"]
[EventType "swiss"]
[EventCountry "CZE"]
[SourceTitle "playchess.com"]
[Source "ChessBase"]
[SourceQuality "1"]
[TimeControl "5400+30"]

1. e4 {[%emt 0:00:03]} c5 {[%emt 0:00:02]} 2. Nf3 {[%emt 0:00:06]} Nc6 {[%emt 0:00:10]} 3. c3 {[%emt 0:00:19]} Nf6 {[%emt 0:00:05]} 4. e5 {[%emt 0:00:05]} Nd5 {[%emt 0:00:03]} 5. d4 {[%emt 0:00:08]} cxd4 {[%emt 0:00:04]} 6. cxd4 {[%emt 0:00:06]} d6 {[%emt 0:00:01]} 7. Bc4 {[%emt 0:00:11]} dxe5 {[%emt 0:00:05]} 8. Bxd5 {[%emt 0:02:32]} Qxd5 {[%emt 0:01:21]} 9. Nc3 {[%emt 0:00:04]} Qd6 {[%emt 0:00:10]} 10. d5 {[%emt 0:00:25]} Nd4 {[%emt 0:00:14]} 11. Nxd4 {[%emt 0:00:35]} exd4 {[%emt 0:00:04]} 12. Qxd4 {[%emt 0:00:09]} e5 {[%emt 0:00:02]} 13. Qd3 {[%emt 0:03:13]} Bd7 {[%emt 0:00:05]} 14. O-O {[%emt 0:01:10]} Qg6 {[%emt 0:00:10]} 15. Qe2 {[%emt 0:09:39]} Bd6 {[%emt 0:00:28]} 16. f4 {[%emt 0:05:08]} O-O {[%emt 0:00:27]} 17. fxe5 {[%emt 0:01:35]} Rfe8 {[%emt 0:00:18]} 18. Bf4 {[%emt 0:00:30]} Bxe5 {[%emt 0:00:19]} 19. Bxe5 {[%emt 0:06:56]} f6 {[%emt 0:00:16]} 20. Qc4 {[%emt 0:07:16]} Rxe5 {[%emt 0:02:04]} 21. Qc7 {[%emt 0:00:55]} Bh3 {[%emt 0:02:09]} 22. Rf2 {[%emt 0:02:31]} Rae8 {[%emt 0:01:14]} 23. Raf1 {[%emt 0:00:33]} Rg5 {[%emt 0:01:11]} 24. g3 {[%emt 0:08:35]} Bxf1 {[%emt 0:00:40]} 25. Rxf1 {[%emt 0:00:02]} Qf7 {[%emt 0:07:31]} 26. Qf4 {[%emt 0:03:22]} Rge5 {[%emt 0:03:50]} 27. Qd4 {[%emt 0:02:25]} b6 {[%emt 0:02:50]} 28. Rd1 {[%emt 0:04:58]} Re1+ {[%emt 0:01:28]} 29. Rxe1 {[%emt 0:00:25]} Rxe1+ {[%emt 0:00:05]} 30. Kf2 {[%emt 0:00:07]} Re8 {[%emt 0:01:10]} 31. a4 {[%emt 0:09:26]} Qe7 {[%emt 0:04:10]} 32. Qd2 {[%emt 0:00:13]} Qc5+ {[%emt 0:03:09]} 33. Kg2 {[%emt 0:03:54]} a6 {[%emt 0:00:41]} 34. Qd3 {[%emt 0:07:40]} b5 {[%emt 0:04:54]} 35. axb5 {[%emt 0:01:54]} axb5 {[%emt 0:00:13]} 36. d6 {[%emt 0:04:24]} Qc6+ {[%emt 0:08:52]} 37. Kf2 {[%emt 0:04:32]} b4 {[%emt 0:00:57]} 38. Nb5 {[%emt 0:02:07]} Qc5+ {[%emt 0:00:38]} 39. Kg2 {[%emt 0:00:39]} Qe5 {[%emt 0:09:12]} 40. Qc4+ {[%emt 0:06:17]} Kf8 {[%emt 0:04:04]} 41. d7 {[%emt 0:02:36]} Qe2+ {[%emt 0:00:16]} 42. Kg1 {[%emt 0:01:18]} Qe1+ {[%emt 0:00:49]} 43. Kg2 {[%emt 0:00:02]} Re2+ {[%emt 0:00:15]} 44. Kh3 {[%emt 0:00:25]} Qf1+ {[%emt 0:00:04]} 45. Kg4 {[%emt 0:00:25]} h5+ {[%emt 0:00:03]} 46. Kxh5 {[%emt 0:00:17]} Qf5+ {[%emt 0:00:06]} 47. Kh4 {[%emt 0:00:20]} Rxh2# {[%emt 0:00:07]} 0-1

[Event "EYCC O18-ch 2024"]
[Site "Prague"]
[Date "2024.08.24"]
[Round "3.10"]
[White "Kreken, Eivind Grunt"]
[Black "Lang, Simon"]
[Result "1-0"]
[ECO "A05"]
[WhiteElo "2294"]
[BlackElo "2138"]
[Annotator "RC"]
[PlyCount "51"]
[EventDate "2024.08.19"]
[EventType "swiss"]
[EventCountry "CZE"]
[SourceTitle "playchess.com"]
[Source "ChessBase"]
[SourceQuality "1"]
[TimeControl "5400+30"]

1. Nf3 {[%emt 0:00:06]} Nf6 {[%emt 0:00:33]} 2. g3 {[%emt 0:00:19]} e6 {[%emt 0:01:42]} 3. Bg2 {[%emt 0:00:24]} Be7 {[%emt 0:00:33]} 4. O-O {[%emt 0:00:28]} O-O {[%emt 0:00:17]} 5. c4 {[%emt 0:00:16]} d5 {[%emt 0:01:20]} 6. d3 {[%emt 0:00:25]} b6 {[%emt 0:02:59]} 7. cxd5 {[%emt 0:01:53]} Nxd5 {[%emt 0:02:48]} 8. d4 {[%emt 0:14:15]} Bb7 {[%emt 0:02:54]} 9. Nc3 {[%emt 0:06:44]} c5 {[%emt 0:06:59]} 10. Nxd5 {[%emt 0:04:31]} Bxd5 {[%emt 0:01:39]} 11. dxc5 {[%emt 0:06:49]} Bxc5 {[%emt 0:01:08]} 12. b3 {[%emt 0:18:10]} Qe7 {[%emt 0:12:27]} 13. Bb2 {[%emt 0:00:48]} Nc6 {[%emt 0:05:22]} 14. Qc1 {[%emt 0:02:11]} Rfd8 {[%emt 0:08:06]} 15. Qf4 {[%emt 0:06:03]} f6 {[%emt 0:02:01]} 16. Rad1 {[%emt 0:02:45]} Rac8 {[%emt 0:24:32]} 17. Qh4 {[%emt 0:02:50]} Nb8 {[%emt 0:05:22]} 18. e4 {[%emt 0:10:07]} Bb7 {[%emt 0:00:35]} 19. e5 {[%emt 0:04:52]} f5 {[%emt 0:02:50]} 20. Ng5 {[%emt 0:01:19]} Bxf2+ {[%emt 0:01:03]} 21. Kxf2 {[%emt 0:03:05]} h6 {[%emt 0:08:26]} 22. Nxe6 {[%emt 0:02:22]} Rc2+ {[%emt 0:02:28]} 23. Ke3 {[%emt 0:02:23]} f4+ {[%emt 0:03:01]} 24. Qxf4 {[%emt 0:00:12]} Nd7 {[%emt 0:01:59]} 25. Nxd8 {[%emt 0:00:57]} Qc5+ {[%emt 0:01:18]} 26. Qd4 {[%emt 0:00:17]} 1-0

[Event "EYCC O18-ch 2024"]
[Site "Prague"]
[Date "2024.08.24"]
[Round "3.10"]
[White "Ristic, Luka"]
[Black "Talibov, Shiroghlan"]
[Result "0-1"]
[ECO "A04"]
[WhiteElo "2274"]
[BlackElo "2395"]
[Annotator "RC"]
[PlyCount "72"]
[EventDate "2024.08.19"]
[EventType "swiss"]
[EventCountry "CZE"]
[SourceTitle "playchess.com"]
[Source "ChessBase"]
[SourceQuality "1"]
[TimeControl "5400+30"]

1. Nf3 {[%emt 0:00:30]} c5 {[%emt 0:01:31]} 2. c4 {[%emt 0:00:39]} Nf6 {[%emt 0:00:50]} 3. Nc3 {[%emt 0:04:22]} b6 {[%emt 0:08:19]} 4. g3 {[%emt 0:08:27]} Bb7 {[%emt 0:01:22]} 5. Bg2 {[%emt 0:00:25]} g6 {[%emt 0:03:47]} 6. b3 {[%emt 0:06:15]} Bg7 {[%emt 0:03:13]} 7. Bb2 {[%emt 0:00:26]} Ne4 {[%emt 0:02:07]} 8. Qc2 {[%emt 0:02:41]} Nxc3 {[%emt 0:00:48]} 9. Bxc3 {[%emt 0:00:05]} e5 {[%emt 0:00:12]} 10. O-O {[%emt 0:09:23]} d6 {[%emt 0:02:06]} 11. e3 {[%emt 0:01:22]} O-O {[%emt 0:01:22]} 12. d4 {[%emt 0:02:33]} cxd4 {[%emt 0:09:46]} 13. exd4 {[%emt 0:00:13]} e4 {[%emt 0:00:03]} 14. Nd2 {[%emt 0:01:24]} f5 {[%emt 0:00:38]} 15. d5 {[%emt 0:03:56]} Nd7 {[%emt 0:00:18]} 16. f4 {[%emt 0:11:05]} b5 {[%emt 0:01:55]} 17. Bxg7 {[%emt 0:03:15]} Kxg7 {[%emt 0:00:07]} 18. Qc3+ {[%emt 0:06:23]} Qf6 {[%emt 0:07:27]} 19. Qe3 {[%emt 0:06:46]} Rfc8 {[%emt 0:07:28]} 20. g4 {[%emt 0:02:55]} bxc4 {[%emt 0:03:06]} 21. g5 {[%emt 0:02:58]} Qe7 {[%emt 0:01:19]} 22. Qd4+ {[%emt 0:00:13]} Kg8 {[%emt 0:00:08]} 23. bxc4 {[%emt 0:00:17]} Ba6 {[%emt 0:00:49]} 24. Rab1 {[%emt 0:04:03]} Qg7 {[%emt 0:01:24]} 25. Qxg7+ {[%emt 0:02:14]} Kxg7 {[%emt 0:00:01]} 26. Kf2 {[%emt 0:01:23]} Nb6 {[%emt 0:09:55]} 27. Rfc1 {[%emt 0:00:46]} Nxc4 {[%emt 0:07:22]} 28. Nxc4 {[%emt 0:01:10]} Bxc4 {[%emt 0:00:37]} 29. Rb7+ {[%emt 0:01:27]} Kg8 {[%emt 0:00:39]} 30. Rd1 {[%emt 0:03:42]} Bxa2 {[%emt 0:00:53]} 31. Rd2 {[%emt 0:07:14]} Bc4 {[%emt 0:00:06]} 32. h4 {[%emt 0:04:09]} Ba6 {[%emt 0:04:19]} 33. Rd7 {[%emt 0:00:34]} Rc3 {[%emt 0:00:07]} 34. Rb2 {[%emt 0:02:38]} e3+ {[%emt 0:00:23]} 35. Kg3 {[%emt 0:00:27]} Re8 {[%emt 0:00:27]} 36. Bf1 {[%emt 0:00:42]} e2+ {[%emt 0:00:04]} 0-1

[Event "EYCC O18-ch 2024"]
[Site "Prague"]
[Date "2024.08.24"]
[Round "3.11"]
[White "Rozen, Eytan"]
[Black "Shamatava, Nikolozi"]
[Result "1-0"]
[ECO "E47"]
[WhiteElo "2478"]
[BlackElo "2196"]
[Annotator "TA"]
[PlyCount "73"]
[EventDate "2024.08.19"]
[EventType "swiss"]
[EventCountry "CZE"]
[SourceTitle "playchess.com"]
[Source "ChessBase"]
[SourceQuality "1"]
[TimeControl "5400+30"]

{[%evp 20,73,19,2,19,0,23,14,30,16,42,-25,-26,-45,-5,-14,-9,-37,-26,-18,-19,-11,-10,-142,0,-22,0,0,0,0,0,0,0,0,42,52,22,43,177,192,166,129,393,339,464,466,458,469,447,445,437,292,303,300,392,387]} 1. d4 {[%emt 0:00:10]} Nf6 {[%emt 0:00:07]} 2. c4 {[%emt 0:00:03]} e6 {[%emt 0:00:05]} 3. Nc3 {[%emt 0:00:03]} Bb4 {[%emt 0:00:10]} 4. e3 {[%emt 0:00:05]} O-O {[%emt 0:00:06]} 5. Bd3 {[%emt 0:00:03]} c5 {[%emt 0:01:06]} 6. Nge2 {[%emt 0:00:19]} d5 {[%emt 0:01:58]} 7. cxd5 {[%emt 0:00:57]} exd5 {[%emt 0:01:22]} 8. O-O {[%emt 0:01:34]} Nc6 {[%emt 0:07:33]} 9. a3 {[%emt 0:01:15]} cxd4 {[%emt 0:00:44]} 10. exd4 {[%emt 0:02:07]} Bd6 {[%emt 0:03:26]} 11. h3 {[%emt 0:00:21]} h6 {[%emt 0:01:41] Dodges Bg5} 12. Bc2 {[%emt 0:03:01]} Ne7 {[%emt 0:10:56]} 13. Ng3 {[%emt 0:03:29]} Re8 {[%emt 0:00:56] The position is equal.} 14. Qf3 {[%emt 0:04:14][%cal Oc1h6] And now Bxh6! would win.} Ng6 15. Rd1 {[%emt 0:10:51]} ({White should play} 15. Nh5 $14) 15... Nh4 $11 {[%emt 0:23:09]} 16. Qd3 {[%emt 0:00:02][%cal Oc3d5]} Be6 (16... Bxg3 {simplifies} 17. fxg3 Bf5 18. Qd2 Bxc2 19. Qxc2 Ng6) 17. Bd2 {[%emt 0:13:17]} a6 {[%emt 0:04:22]} 18. Na4 {[%emt 0:07:49]} Rc8 {[%emt 0:10:23]} (18... Ne4 {keeps more tension.} 19. Nc5 Qf6 20. Ncxe4 dxe4 21. Nxe4 Qg6) 19. Nc5 $1 {[%emt 0:00:17]} Bxc5 {[%emt 0:00:26]} (19... Ne4 {seems wilder.} 20. Re1 Bxc5 21. dxc5 Rxc5 22. Bb4 Rc8) 20. dxc5 {[%emt 0:00:01]} Rxc5 {[%emt 0:00:07][%cal Oe6h3]} 21. Bc3 {[%emt 0:07:29]} (21. Be3 $11 Rc4 22. Bb3) 21... Ng6 {[%emt 0:01:13]} (21... Bxh3 $1 $17 22. Re1 (22. gxh3 $2 {is the wrong capture.} d4 $19) 22... Rxe1+ (22... Bxg2 23. Bxf6 Rxe1+ 24. Rxe1 $16) 23. Rxe1 Rxc3 (23... Nxg2 $2 24. Bxf6 Rxc2 25. Bxd8 $18) 24. Qxc3 Nxg2 (24... Bxg2 25. Nf5 $11)) 22. Qf3 {[%emt 0:02:08]} Nh4 {[%emt 0:04:44]} (22... Qc7 {simplifies} 23. Bxg6 fxg6 24. Re1 Qf7) 23. Qf4 {[%emt 0:01:34]} Rc4 {[%emt 0:01:12]} 24. Rd4 {[%emt 0:00:35]} Ng6 {[%emt 0:02:35][%cal Bh4g6,Bg6e7,Be7c6][%mdl 32]} 25. Qd2 {[%emt 0:01:09]} Ne7 {[%emt 0:04:08]} 26. Rd1 {[%emt 0:00:54]} Nc6 {[%emt 0:04:49]} 27. Rxc4 {[%emt 0:00:07]} dxc4 {[%emt 0:00:04]} 28. Qf4 {[%emt 0:00:05]} Nd5 {[%emt 0:04:44] [#]} (28... Qe7 $1 $14) 29. Qe4 $1 $18 {[%emt 0:05:02]} ({Don't play} 29. Qxc4 $6 Qg5 $16) 29... g6 {[%emt 0:02:05]} 30. Qf3 $40 {[%emt 0:07:36][%mdl 128] White attacks with force.} f5 {[%emt 0:05:12][%mdl 8192] [#] Prevents Be4. This costs Black the game.} (30... Re7 $16) 31. Nxf5 $1 {[%emt 0:01:19][%mdl 512]} gxf5 {[%emt 0:04:45]} 32. Bxf5 {[%emt 0:01:38][%cal Of5h7] Intending Bh7+! and mate.} Bf7 {[%emt 0:01:12] [#]} 33. Bh7+ $1 {[%emt 0:03:56][%mdl 512] A strong pair of Bishops.} Kf8 {[%emt 0:00:06] [#] Strongly threatening ...Qg5.} 34. Bg6 $1 {[%emt 0:00:04]} Qd7 {[%emt 0:01:28] White must now prevent ...Ne5.} 35. Bxf7 {[%emt 0:00:22]} Qxf7 {[%emt 0:00:06]} 36. Qxd5 {[%emt 0:01:30]} Rd8 {[%emt 0:00:54] Wards off Qd6+} 37. Qc5+ {[%emt 0:01:01] Weighted Error Value: White=0.27 (precise) /Black=0.40.  Loses game:     	---       	Black=1      Mistake:       	White=2     	Black=2      Inaccurate:     	White=2     	Black=5      OK:         	White=9     	Black=5      Best:        	---       	Black=2      Strong:       	White=3     	---} 1-0

[Event "EYCC O18-ch 2024"]
[Site "Prague"]
[Date "2024.08.24"]
[Round "3.11"]
[White "Kovalskyi, Roman"]
[Black "Eilenberg, Jonas"]
[Result "0-1"]
[ECO "C07"]
[WhiteElo "2108"]
[BlackElo "2285"]
[Annotator "RC"]
[PlyCount "102"]
[EventDate "2024.08.19"]
[EventType "swiss"]
[EventCountry "CZE"]
[SourceTitle "playchess.com"]
[Source "ChessBase"]
[SourceQuality "1"]
[TimeControl "5400+30"]

1. e4 {[%emt 0:01:40]} e6 {[%emt 0:00:04]} 2. d4 {[%emt 0:00:22]} d5 {[%emt 0:00:07]} 3. Nd2 {[%emt 0:00:05]} c5 {[%emt 0:02:07]} 4. Ngf3 {[%emt 0:00:06]} cxd4 {[%emt 0:00:13]} 5. Nxd4 {[%emt 0:00:04]} Nc6 {[%emt 0:00:14]} 6. Bb5 {[%emt 0:00:05]} Bd7 {[%emt 0:00:04]} 7. Nxc6 {[%emt 0:00:06]} bxc6 {[%emt 0:00:05]} 8. Bd3 {[%emt 0:00:06]} Bd6 {[%emt 0:01:12]} 9. Qe2 {[%emt 0:00:07]} Qc7 {[%emt 0:01:23]} 10. Nf3 {[%emt 0:00:06]} Ne7 {[%emt 0:00:54]} 11. e5 {[%emt 0:00:06]} Bc5 {[%emt 0:02:02]} 12. c4 {[%emt 0:00:15]} h6 {[%emt 0:02:45]} 13. O-O {[%emt 0:01:11]} g5 {[%emt 0:06:16]} 14. Be3 {[%emt 0:03:23]} Bxe3 {[%emt 0:00:43]} 15. Qxe3 {[%emt 0:00:07]} c5 {[%emt 0:00:57]} 16. cxd5 {[%emt 0:00:44]} Nxd5 {[%emt 0:00:06]} 17. Qe4 {[%emt 0:01:38]} Bc6 {[%emt 0:02:32]} 18. Rfc1 {[%emt 0:01:05]} Qb6 {[%emt 0:04:48]} 19. Qc4 {[%emt 0:06:31]} Nf4 {[%emt 0:00:26]} 20. Qxc5 {[%emt 0:06:05]} Qxc5 {[%emt 0:00:10]} 21. Rxc5 {[%emt 0:00:05]} Bxf3 {[%emt 0:00:08]} 22. Bb5+ {[%emt 0:00:03]} Kf8 {[%emt 0:00:05]} 23. gxf3 {[%emt 0:00:08]} Kg7 {[%emt 0:00:03]} 24. Rc7 {[%emt 0:08:08]} Rhd8 {[%emt 0:10:19]} 25. Bd7 {[%emt 0:01:57]} a5 {[%emt 0:05:00]} 26. Rd1 {[%emt 0:15:53]} Rab8 {[%emt 0:00:28]} 27. b3 {[%emt 0:05:18]} Rb5 {[%emt 0:01:06]} 28. Bxb5 {[%emt 0:00:06]} Rxd1+ {[%emt 0:00:04]} 29. Bf1 {[%emt 0:00:05]} Ne2+ {[%emt 0:00:20]} 30. Kg2 {[%emt 0:00:08]} Nf4+ {[%emt 0:00:03]} 31. Kg1 {[%emt 0:00:06]} Ra1 {[%emt 0:01:03]} 32. a4 {[%emt 0:01:26]} h5 {[%emt 0:06:57]} 33. Rc2 {[%emt 0:06:34]} h4 {[%emt 0:00:48]} 34. h3 {[%emt 0:00:04]} Kg6 {[%emt 0:02:08]} 35. Rc5 {[%emt 0:07:25]} Ne2+ {[%emt 0:02:26]} 36. Kg2 {[%emt 0:00:08]} Nf4+ {[%emt 0:00:03]} 37. Kg1 {[%emt 0:00:03]} Nxh3+ {[%emt 0:00:05]} 38. Kh2 {[%emt 0:00:16]} Nf4 {[%emt 0:00:13]} 39. Bh3 {[%emt 0:04:04]} Ra2 {[%emt 0:00:27]} 40. Bg4 {[%emt 0:00:05]} Rxf2+ {[%emt 0:00:14]} 41. Kg1 {[%emt 0:00:04]} Rb2 {[%emt 0:01:48]} 42. Rxa5 {[%emt 0:00:56]} h3 {[%emt 0:01:32]} 43. Ra8 {[%emt 0:01:58]} h2+ {[%emt 0:00:07]} 44. Kh1 {[%emt 0:00:04]} Kg7 {[%emt 0:00:03]} 45. a5 {[%emt 0:07:10]} Rf2 {[%emt 0:00:05]} 46. Bh3 {[%emt 0:00:04]} Nxh3 {[%emt 0:00:05]} 47. a6 {[%emt 0:00:05]} Nf4 {[%emt 0:00:16]} 48. a7 {[%emt 0:00:38]} Nh5 {[%emt 0:00:43]} 49. Rg8+ {[%emt 0:00:06]} Kxg8 {[%emt 0:00:05]} 50. a8=Q+ {[%emt 0:00:08]} Kg7 {[%emt 0:00:02]} 51. f4 {[%emt 0:00:09]} Ng3# {[%emt 0:00:05]} 0-1